[Event "Marmaris Karya-19 GM-May 2022"]
[Site "Icmeler-Marmaris"]
[Date "2022.05.15"]
[Round "6.4"]
[White "Maghalashvili, Davit"]
[Black "Darban, Morteza"]
[Result "1-0"]
[ECO "B51"]
[WhiteElo "2456"]
[BlackElo "2279"]
[Annotator "TA"]
[PlyCount "114"]
[EventDate "2022.05.15"]
[EventType "schev"]
[EventCountry "TUR"]
[SourceTitle "playchess.com"]
[Source "ChessBase"]
[SourceQuality "1"]
[TimeControl "5400+30"]

{[%evp 11,114,19,20,20,45,37,56,63,50,40,38,45,73,77,75,68,93,72,94,38,50,8,23,24,26,0,48,36,103,110,110,112,105,108,112,81,77,81,79,82,77,78,136,137,176,172,232,220,225,227,336,336,324,337,284,246,384,354,829,862,811,776,757,402,410,416,399,382,658,659,659,648,601,344,595,319,324,316,316,316,423,423,423,292,406,385,332,332,320,317,332,325,365,358,423,423,423,423,409,409,409,397,416,416,387]} 1. Nf3 {[%emt 0:02:00]} c5 {[%emt 0:05:00]} 2. e4 {[%emt 0:00:30]} d6 {[%emt 0:01:30]} 3. Bb5+ {[%emt 0:00:30]} Nd7 {[%emt 0:02:30]} 4. c3 {[%emt 0:00:30]} Ngf6 {[%emt 0:01:30]} 5. Qe2 {[%emt 0:00:30]} a6 {[%emt 0:02:30]} 6. Ba4 {[%emt 0:00:30]} Qc7 {[%emt 0:12:30]} 7. O-O {[%emt 0:02:30] B51: Sicilian: Moscow Variation (3 Bb5+) without 3...Bd7.} c4 {[%emt 0:00:30]} 8. Bc2 {[%emt 0:00:00]} Ne5 {[%emt 0:19:30]} 9. Nxe5 {[%emt 0:05:00] White is slightly better.} dxe5 {[%emt 0:00:30]} 10. b3 {[%emt 0:00:00]} cxb3 {[%emt 0:00:30]} 11. axb3 {[%emt 0:00:00] [#]} g6 $146 {[%emt 0:01:30]} ({Predecessor:} 11... Bd7 12. Ba3 Rc8 13. f4 exf4 14. e5 Ng4 15. d4 Ne3 16. Rxf4 Nxc2 17. Qxc2 g5 {1-0 (26) Benjamin,J (2566)-Sarkar,J (2375) New York 2004}) 12. d4 {[%emt 0:05:30]} exd4 {[%emt 0:01:30]} 13. cxd4 {[%emt 0:00:00]} Bg7 {[%emt 0:00:30]} (13... Qd6 $2 14. e5 Qe6 15. Qc4 $16) 14. Bb2 {[%emt 0:03:00]} O-O {[%emt 0:00:30]} 15. Nc3 {[%emt 0:00:00]} (15. Rc1 $16) 15... Be6 $14 {[%emt 0:11:30]} 16. h3 {[%emt 0:05:00]} Nh5 $1 {[%emt 0:07:30][%cal Oh5g3]} 17. Qe3 {[%emt 0:05:30] Against Ng3} Nf4 {[%emt 0:04:30]} 18. Rfc1 {[%emt 0:01:30]} Qb8 {[%emt 0:07:47]} (18... Rad8 $11 19. d5 Bd7) 19. Na4 {[%emt 0:03:30]} b5 {[%emt 0:00:57]} (19... Bh6 $14 20. Kh1 Nxh3 21. Qxh6 Nxf2+ 22. Kg1 Nh3+ 23. gxh3 Qg3+ 24. Kh1 Qf3+ 25. Kh2 Qf2+ 26. Kh1 Qf3+ 27. Kg1 (27. Kh2 Qf2+ 28. Kh1 Qf3+ $11) 27... Qg3+ 28. Kh1 Qf3+) 20. Nc5 $16 {[%emt 0:00:30]} Bc8 {[%emt 0:02:01]} 21. b4 {[%emt 0:02:30]} Rd8 {[%emt 0:08:38]} 22. Bd1 {[%emt 0:11:30]} Ne6 {[%emt 0:02:00][%cal Re6d4]} 23. Nb3 {[%emt 0:01:30]} Qb6 {[%emt 0:01:09]} 24. Bg4 {[%emt 0:03:30]} h5 {[%emt 0:01:31]} 25. Bxe6 {[%emt 0:01:30]} Bxe6 {[%emt 0:01:02]} 26. Nc5 {[%emt 0:00:30]} Bc8 {[%emt 0:01:16] [#]} (26... Bc4 $142) 27. Bc3 $1 {[%emt 0:01:30] White is more active.} Qd6 {[%emt 0:01:45][%cal Rg7d4]} 28. d5 {[%emt 0:01:30]} f6 {[%emt 0:01:36]} (28... Bxc3 $142 29. Rxc3 (29. Qxc3 Qf4 $16) 29... Qe5) 29. Rd1 $18 {[%emt 0:01:30]} Kh7 {[%emt 0:00:35]} 30. f4 {[%emt 0:00:30]} Bh6 {[%emt 0:00:32]} (30... Qc7 {was worth a try.} 31. Bd4 Rf8) 31. e5 {[%emt 0:01:30]} fxe5 {[%emt 0:00:02]} 32. Bxe5 {[%emt 0:00:30]} Qb6 {[%emt 0:00:10]} 33. Bb2 {[%emt 0:05:30]} Qd6 {[%emt 0:00:25]} (33... Ra7 $142 34. Kh1 Rg8) 34. Re1 {[%emt 0:01:30]} Bxf4 $2 {[%emt 0:01:25]} (34... Rf8 35. Qxe7+ Qxe7 36. Rxe7+ Kg8) 35. Qxe7+ {[%emt 0:03:30]} Qxe7 {[%emt 0:00:02]} 36. Rxe7+ {[%emt 0:00:00]} Kh6 {[%emt 0:00:07]} 37. Rf1 {[%emt 0:00:00]} g5 {[%emt 0:00:55]} 38. g3 {[%emt 0:06:30][%cal Bg2g3,Bg3f4,Bf4g5][%mdl 32]} Bxh3 {[%emt 0:00:03]} 39. gxf4 {[%emt 0:00:30]} (39. Rf2 Rxd5 40. gxf4 gxf4 $18) 39... Bxf1 $2 {[%emt 0:01:02]} (39... Rxd5 40. Rf2 gxf4) 40. Re6+ {[%emt 0:03:30]} (40. Kxf1 Rxd5 41. Re6+ Kh7 $18) 40... Kh7 {[%emt 0:00:02]} 41. fxg5 {[%emt 0:00:30] Intending Rh6+ and mate.} ({Less strong is} 41. Kxf1 Rxd5 42. Ne4 Rf8 $16) 41... Rxd5 {[%emt 0:01:24]} 42. Rh6+ {[%emt 0:00:30]} ({Stronger than} 42. Kxf1 Rxg5 43. Nd7 Rf5+ 44. Ke2 h4 $11) 42... Kg8 {[%emt 0:00:02]} 43. Rh8+ {[%emt 0:00:30][%mdl 64] [#] Skewer} (43. Kxf1 Rf5+ 44. Kg2 Rxg5+ 45. Kh3 Re8 $11) 43... Kf7 {[%emt 0:00:06]} 44. Rxa8 {[%emt 0:00:00]} Bc4 {[%emt 0:01:18]} 45. Bf6 {[%emt 0:02:00]} ({Not} 45. Nxa6 Rd1+ 46. Kf2 Rd2+ 47. Ke3 Rxb2 $15) 45... h4 {[%emt 0:00:34]} 46. Rxa6 {[%emt 0:01:30]} Kg6 {[%emt 0:00:13]} 47. Be7+ {[%emt 0:02:30]} Kf7 {[%emt 0:00:03]} 48. Ra7 {[%emt 0:01:30]} Kg6 {[%emt 0:01:04]} 49. Ne4 {[%emt 0:03:14]} Re5 {[%emt 0:00:30]} 50. Nf2 {[%emt 0:01:39]} Re1+ {[%emt 0:00:21]} 51. Kh2 {[%emt 0:00:59]} Re2 {[%emt 0:00:46]} 52. Ra6+ {[%emt 0:00:11]} Kf5 {[%emt 0:00:22]} 53. Rf6+ {[%emt 0:01:06]} Kxg5 {[%emt 0:00:02]} 54. Re6+ {[%emt 0:00:09]} Kh5 {[%emt 0:00:17]} 55. Rxe2 {[%emt 0:00:06] White is winning.} Bxe2 {[%emt 0:00:02]} 56. Ne4 {[%emt 0:00:15]} Bf1 {[%emt 0:01:51]} 57. Nf6+ {[%emt 0:00:12]} Kg6 {[%emt 0:01:03] Weighted Error Value: White=0.20 (precise) /Black=0.29 (precise)} 1-0

[Event "Marmaris Karya-19 GM-May 2022"]
[Site "Icmeler-Marmaris"]
[Date "2022.05.15"]
[Round "6.5"]
[White "Gholami, Aryan"]
[Black "Ozdemir, Serhan Berat"]
[Result "1-0"]
[ECO "A11"]
[WhiteElo "2530"]
[BlackElo "2117"]
[Annotator "TA"]
[PlyCount "101"]
[EventDate "2022.05.15"]
[EventType "schev"]
[EventCountry "TUR"]
[SourceTitle "playchess.com"]
[Source "ChessBase"]
[SourceQuality "1"]
[TimeControl "5400+30"]

{[%evp 16,101,0,0,0,0,0,0,0,-32,-15,-40,-37,-47,-8,-5,0,0,0,-11,37,0,18,6,33,29,77,65,145,83,83,79,116,65,65,62,62,62,72,0,77,81,81,39,46,0,6,8,454,470,561,558,531,522,617,616,1907,1768,1452,362,473,242,242,241,219,209,593,578,525,518,439,427,575,477,763,760,712,659,610,610,3499,3483,1943,1885,5708,5600,1479,1013]} 1. Nf3 {[%emt 0:01:00]} Nf6 {[%emt 0:08:00]} 2. g3 {[%emt 0:00:30]} g6 {[%emt 0:00:00]} 3. b3 {[%emt 0:00:00]} Bg7 {[%emt 0:00:00]} 4. Bb2 {[%emt 0:00:00]} O-O {[%emt 0:00:30]} 5. Bg2 {[%emt 0:00:30]} d5 {[%emt 0:01:30]} 6. c4 {[%emt 0:00:00]} c6 {[%emt 0:02:30]} 7. O-O {[%emt 0:00:00]} Nbd7 {[%emt 0:01:30]} 8. d3 {[%emt 0:01:30]} Re8 {[%emt 0:01:30]} 9. Nc3 {[%emt 0:02:30]} e5 {[%emt 0:02:30] A11: English Opening: 1...c6.} 10. cxd5 {[%emt 0:00:00]} cxd5 {[%emt 0:00:30]} 11. Rc1 {[%emt 0:00:00]} a6 {[%emt 0:01:30] Prevents Nb5. The position is equal.} 12. b4 {[%emt 0:00:30]} Nb6 {[%emt 0:10:30]} 13. Na4 {[%emt 0:07:30]} Nxa4 {[%emt 0:12:30]} 14. Qxa4 {[%emt 0:00:30] [#]} Qd6 $146 {[%emt 0:01:30]} ({Predecessor:} 14... Bd7 15. Qb3 Bh6 16. Nxe5 Bxc1 17. Rxc1 Be6 18. Qc3 Rc8 19. Qd4 Rxc1+ 20. Bxc1 Nh5 {1-0 (45) Machlowski,S (2112)-Wrobel,M (1996) Poland 2017}) 15. Qb3 {[%emt 0:04:30]} Bg4 {[%emt 0:13:30]} (15... d4 {with more complications.} 16. Ng5 Qe7 17. Rc5 h6) 16. Rc5 {[%emt 0:02:30]} Rad8 {[%emt 0:05:30]} 17. Rfc1 {[%emt 0:02:30]} h6 {[%emt 0:08:30]} (17... d4 $11 {feels stronger.}) 18. h3 {[%emt 0:04:30]} Bd7 {[%emt 0:00:30]} 19. e3 {[%emt 0:04:30] Prevents d4.} g5 {[%emt 0:05:30]} 20. a4 {[%emt 0:02:30]} Bf5 {[%emt 0:05:33]} (20... Qb8 $11) 21. b5 {[%emt 0:02:30]} e4 {[%emt 0:02:10]} (21... g4 $1 $14 22. hxg4 Nxg4) 22. dxe4 {[%emt 0:03:30]} (22. Nd4 $142 Bg6 23. bxa6 bxa6 24. Rc6) 22... Nxe4 $16 {[%emt 0:02:00]} 23. Rc7 {[%emt 0:00:30] [#] Black must now prevent Bxg7.} Rd7 {[%emt 0:04:01]} 24. b6 {[%emt 0:00:30]} (24. Rxd7 $16 Bxd7 25. Bxg7 Kxg7 26. Nd4) 24... Rxc7 $1 $14 {[%emt 0:04:35]} 25. Rxc7 {[%emt 0:00:30]} Nc5 {[%emt 0:00:39]} 26. Qb4 {[%emt 0:00:30]} Bxb2 {[%emt 0:00:15]} 27. Qxc5 {[%emt 0:00:30]} (27. a5 $16) 27... Qxc5 {[%emt 0:00:21]} (27... Ba3 $1 $11 28. Qxd6 Bxd6) 28. Rxc5 $16 {[%emt 0:00:30]} Bd7 {[%emt 0:03:04]} 29. Nd4 {[%emt 0:02:30]} Bxd4 {[%emt 0:02:20]} 30. exd4 $14 {[%emt 0:00:00][%mdl 4096] Endgame KRB-KRB} Re1+ {[%emt 0:00:40]} 31. Kh2 {[%emt 0:00:00]} Re2 $2 {[%emt 0:01:10][%mdl 8192] This move loses the game for Black.} (31... Bxa4 $11 32. Bxd5 Rb1) 32. Bxd5 $18 {[%emt 0:00:30]} Bxa4 {[%emt 0:00:30]} (32... Rxf2+ $2 33. Kg1 Rb2 34. a5 $18 (34. Bxb7 Rxb6 35. Bd5 Bxa4 $15)) 33. Rc7 {[%emt 0:01:30]} Rxf2+ {[%emt 0:00:05]} 34. Kg1 {[%emt 0:00:30]} Rf6 {[%emt 0:00:51]} 35. Rxb7 {[%emt 0:00:30]} Bc6 {[%emt 0:00:05]} 36. Rb8+ {[%emt 0:00:30]} Kg7 {[%emt 0:00:05]} 37. Bc4 $2 {[%emt 0:00:30]} (37. Bxc6 {And now Rc8 would win.} Rxc6 38. b7 Rc1+ 39. Kf2 Rc2+ 40. Ke3 Rc3+ 41. Ke4) 37... Bb5 {[%emt 0:01:21] [#]} 38. b7 $1 {[%emt 0:06:30]} Bxc4 {[%emt 0:01:14] KRB-KR} 39. Rc8 {[%emt 0:00:00]} Rf1+ {[%emt 0:00:30]} 40. Kg2 {[%emt 0:00:00]} Bd5+ $2 {[%emt 0:00:30]} (40... Rb1 {is more resistant.} 41. b8=Q Bf1+ 42. Kf2 Rxb8 43. Rxb8 Bxh3) 41. Kxf1 {[%emt 0:00:30] White is clearly winning.} Bxb7 {[%emt 0:00:01] KR-KB} 42. Rc7 {[%emt 0:00:30]} Bd5 {[%emt 0:00:14]} 43. Rc5 {[%emt 0:00:30]} Be6 {[%emt 0:00:08]} 44. h4 {[%emt 0:00:30]} Kf6 {[%emt 0:00:11]} (44... Kg6 $142 45. Ke2 Bd7) 45. Kf2 {[%emt 0:00:00]} Bd7 {[%emt 0:00:16]} 46. Kf3 {[%emt 0:00:00]} Bb5 {[%emt 0:00:07]} 47. Ke4 {[%emt 0:00:30]} Ke6 {[%emt 0:00:44]} 48. hxg5 {[%emt 0:00:30]} hxg5 {[%emt 0:00:04]} 49. Rxg5 {[%emt 0:00:00] Threatens to win with Re5+.} f5+ {[%emt 0:00:02]} 50. Kf4 {[%emt 0:01:00]} Bd3 {[%emt 0:00:14]} 51. Rg8 {[%emt 0:00:30] Weighted Error Value: White=0.40/Black=0.66} 1-0

[Event "Marmaris Karya-19 GM-May 2022"]
[Site "Icmeler-Marmaris"]
[Date "2022.05.16"]
[Round "7.1"]
[White "Caglar, Sila"]
[Black "Benidze, Davit"]
[Result "1/2-1/2"]
[ECO "B06"]
[WhiteElo "2133"]
[BlackElo "2425"]
[Annotator "TA"]
[PlyCount "60"]
[EventDate "2022.05.15"]
[EventType "schev"]
[EventCountry "TUR"]
[SourceTitle "playchess.com"]
[Source "ChessBase"]
[SourceQuality "1"]
[TimeControl "5400+30"]

{[%evp 9,60,6,9,10,17,17,21,17,10,9,9,0,6,6,8,2,31,18,65,56,67,41,90,52,52,52,94,100,125,74,125,125,123,84,78,41,55,62,58,62,76,55,55,66,68,77,86,0,64,0,86,0,67]} 1. e4 {[%emt 0:11:00]} g6 {[%emt 0:02:00]} 2. d4 {[%emt 0:00:00]} Bg7 {[%emt 0:00:00]} 3. Nc3 {[%emt 0:00:00]} c6 {[%emt 0:00:00]} 4. Be3 {[%emt 0:00:30]} Qb6 {[%emt 0:00:00]} 5. Na4 {[%emt 0:00:30]} Qa5+ {[%emt 0:00:00]} 6. c3 {[%emt 0:00:30] B06: Modern Defence.} d6 {[%emt 0:00:30] [#] aiming for ...b5.} 7. b4 {[%emt 0:00:30]} Qc7 {[%emt 0:00:00]} 8. Nf3 {[%emt 0:00:30]} Nf6 {[%emt 0:00:00]} 9. Bd3 {[%emt 0:01:30] [#]} Bg4 $146 {[%emt 0:00:30]} ({Predecessor:} 9... O-O 10. O-O b5 11. Nb2 a5 12. a3 Nbd7 13. Qc2 Bb7 14. c4 bxc4 15. Nxc4 axb4 16. axb4 {1-0 (35) Grimaldi,A (2067)-Tramalloni,L (1980) Mestre 2021}) 10. h3 {[%emt 0:00:30]} Bxf3 {[%emt 0:00:00]} 11. Qxf3 {[%emt 0:00:30]} Nbd7 {[%emt 0:00:00]} 12. O-O {[%emt 0:00:30]} O-O {[%emt 0:00:30]} 13. c4 {[%emt 0:04:30]} a6 {[%emt 0:21:30]} (13... b6 $11) 14. Rac1 {[%emt 0:02:30]} Rac8 {[%emt 0:00:30]} 15. Nc3 {[%emt 0:00:00]} Qb8 {[%emt 0:04:30]} (15... b6 $14 {should be considered.}) 16. a4 {[%emt 0:02:00]} e6 {[%emt 0:11:30]} 17. Qe2 {[%emt 0:06:30]} e5 {[%emt 0:03:30]} 18. d5 {[%emt 0:00:30]} c5 {[%emt 0:00:30]} 19. Rb1 {[%emt 0:06:30]} (19. b5 $142) 19... Qc7 {[%emt 0:09:30] [#]} (19... cxb4 $142 20. Rxb4 Nc5) 20. b5 $1 $16 {[%emt 0:02:30]} Nh5 {[%emt 0:10:30]} 21. Qd2 {[%emt 0:01:30]} Nf4 {[%emt 0:05:30]} 22. Ne2 {[%emt 0:00:30]} ({Reject} 22. Bxf4 exf4 23. Ne2 g5 $11) 22... axb5 {[%emt 0:04:30]} 23. Rxb5 {[%emt 0:03:30]} ({Don't play} 23. Bxf4 bxc4 24. Bxc4 exf4 $15) 23... Nxd3 {[%emt 0:00:30]} 24. Qxd3 {[%emt 0:00:30]} b6 {[%emt 0:00:30]} 25. Rfb1 {[%emt 0:00:30] White is more active.} Ra8 {[%emt 0:00:30]} 26. Nc3 {[%emt 0:00:30]} Rfb8 {[%emt 0:00:30]} 27. Bd2 {[%emt 0:00:30]} Bf8 {[%emt 0:00:30]} 28. Be3 {[%emt 0:00:00]} (28. h4 $16) 28... Be7 {[%emt 0:00:00]} ({Black should play} 28... Bg7 $1 $11) 29. Bd2 {[%emt 0:00:00]} Bf8 $1 {[%emt 0:00:00]} 30. Be3 {[%emt 0:00:00]} ({Better is} 30. g3 $16) 30... Be7 {[%emt 0:00:00] Weighted Error Value: White=0.20 (precise) /Black=0.15 (very precise)} (30... Bg7 $11) 1/2-1/2

[Event "Marmaris Karya-19 GM-May 2022"]
[Site "Icmeler-Marmaris"]
[Date "2022.05.16"]
[Round "7.2"]
[White "Gunduz, Umut Erdem"]
[Black "Toufighi, Homayoon"]
[Result "1-0"]
[ECO "A42"]
[WhiteElo "2316"]
[BlackElo "2439"]
[Annotator "TA"]
[PlyCount "91"]
[EventDate "2022.05.15"]
[EventType "schev"]
[EventCountry "TUR"]
[SourceTitle "playchess.com"]
[Source "ChessBase"]
[SourceQuality "1"]
[TimeControl "5400+30"]

{[%evp 10,91,70,52,68,37,38,23,37,26,44,20,39,27,33,4,29,27,39,51,48,35,62,31,27,29,208,229,226,233,232,221,466,447,458,481,469,472,456,476,466,491,474,475,475,468,551,549,574,567,702,717,689,679,705,692,659,738,757,772,772,774,772,772,752,720,759,751,966,979,948,918,927,879,944,935,1105,1100,1129,1054,1249,1198,6303,2629]} 1. e4 {[%emt 0:01:00]} c6 {[%emt 0:03:00]} 2. d4 {[%emt 0:00:00]} g6 {[%emt 0:00:30]} 3. c4 {[%emt 0:01:00]} Bg7 {[%emt 0:00:30]} 4. Nc3 {[%emt 0:00:30]} d6 {[%emt 0:00:00]} 5. Be3 {[%emt 0:04:30]} Nd7 {[%emt 0:05:00]} 6. Qd2 {[%emt 0:05:30] White is more active.} a6 {[%emt 0:00:30] A42: Modern Defence: Averbakh Variation.} 7. f3 {[%emt 0:10:30]} b5 {[%emt 0:01:30]} 8. d5 {[%emt 0:01:30]} b4 {[%emt 0:00:30] [#] White has an edge.} 9. Nd1 $146 {[%emt 0:07:30]} ({Predecessor:} 9. dxc6 bxc3 10. cxd7+ Bxd7 11. bxc3 Qa5 12. Bd4 Nf6 13. Bd3 Rc8 14. Ne2 Be6 15. O-O Bxc4 16. Bxc4 Rxc4 17. Qd3 Rc6 18. Rac1 O-O 19. Rfd1 Rfc8 {½-½ (19) Sohal,T (2186)-Gansvind,V (2308) Burnaby 2011}) 9... c5 {[%emt 0:01:30]} 10. h4 {[%emt 0:00:30]} h5 {[%emt 0:00:30]} 11. Nh3 {[%emt 0:01:30]} a5 {[%emt 0:00:30]} 12. Ng5 {[%emt 0:02:30]} Ngf6 {[%emt 0:00:30]} 13. Be2 {[%emt 0:00:30]} Ba6 {[%emt 0:04:30]} 14. Nf2 {[%emt 0:01:30]} Ne5 {[%emt 0:00:00]} 15. Rc1 {[%emt 0:00:30]} Qd7 {[%emt 0:00:00]} 16. Nd3 {[%emt 0:11:30] aiming for Nxe5.} (16. O-O $5 {[%cal Rf3f4]}) 16... Nxd3+ {[%emt 0:07:30]} 17. Bxd3 {[%emt 0:00:00]} Qc7 $2 {[%emt 0:01:30] [#] This costs Black the game.} (17... O-O $11) 18. e5 $1 $18 {[%emt 0:01:00][%cal Be4e5,Be5e6,Be6f7][%mdl 32]} Nh7 {[%emt 0:05:30] [#]} 19. e6 $1 {[%emt 0:02:30]} Nxg5 {[%emt 0:00:30]} 20. hxg5 {[%emt 0:00:30]} ({Much less strong is} 20. Bxg5 $6 fxe6 21. Bxg6+ Kd8 $16) 20... O-O-O $2 {[%emt 0:07:30]} (20... fxe6 21. Bxg6+ Kd8 22. dxe6 Bb7 23. Bxh5 (23. Rxh5 Rxh5 24. Bxh5 Qc8 $16) 23... Qc8) 21. exf7 {[%emt 0:00:30] White is clearly winning.} e6 {[%emt 0:00:30]} 22. dxe6 {[%emt 0:02:30]} Qe7 {[%emt 0:02:30]} 23. Bxg6 {[%emt 0:05:30]} Qxe6 {[%emt 0:01:30]} 24. Bxh5 {[%emt 0:00:00]} Rxh5 {[%emt 0:08:30]} 25. Rxh5 {[%emt 0:00:00]} Qxf7 {[%emt 0:00:30]} 26. Rh4 {[%emt 0:00:30]} Bb7 {[%emt 0:00:30]} 27. Kf2 {[%emt 0:00:30]} Be5 {[%emt 0:03:30]} 28. b3 {[%emt 0:09:30]} a4 {[%emt 0:01:30]} 29. Qd3 {[%emt 0:00:30]} a3 {[%emt 0:00:30]} 30. Rh7 {[%emt 0:01:30]} Qe6 {[%emt 0:00:30]} 31. Rch1 {[%emt 0:08:30][%cal Bc1h1,Bh1h7,Bh7f7][%mdl 32] Hoping for R1h6.} Rf8 {[%emt 0:00:00] [#]} 32. Rxb7 $1 {[%emt 0:03:38]} Kxb7 {[%emt 0:02:00]} 33. Qe4+ {[%emt 0:00:14]} Kb6 {[%emt 0:00:00]} 34. Rh7 {[%emt 0:02:03] White wants to mate with Qb7+.} Qc8 {[%emt 0:00:00] Inhibits Qb7+.} 35. g6 {[%emt 0:00:30]} Qc6 {[%emt 0:00:30]} 36. Qxc6+ {[%emt 0:01:38]} Kxc6 {[%emt 0:00:00][%mdl 4096] Endgame KRB-KRB} 37. Rf7 {[%emt 0:00:47]} Rg8 {[%emt 0:00:00]} 38. f4 {[%emt 0:00:06][%cal Bf3f4,Bf4f5][%mdl 32]} Bb2 {[%emt 0:00:30]} 39. f5 {[%emt 0:00:21]} d5 {[%emt 0:00:00]} 40. cxd5+ {[%emt 0:00:28]} Kd6 {[%emt 0:00:00]} 41. Rb7 {[%emt 0:01:16]} Kxd5 {[%emt 0:00:30]} 42. Rc7 {[%emt 0:00:26]} Ke4 {[%emt 0:00:30]} 43. Rxc5 {[%emt 0:01:10]} Kd3 {[%emt 0:00:30]} 44. Rc4 {[%emt 0:00:53]} Bc3 {[%emt 0:00:00]} 45. Bc5 {[%emt 0:00:40]} Rc8 {[%emt 0:00:00]} 46. Bxb4 {[%emt 0:00:28] Weighted Error Value: White=0.06 (flawless) /Black=0.31} 1-0

[Event "Marmaris Karya-19 GM-May 2022"]
[Site "Icmeler-Marmaris"]
[Date "2022.05.16"]
[Round "7.3"]
[White "Ozsakallioglu, Okan"]
[Black "Maghalashvili, Davit"]
[Result "1/2-1/2"]
[ECO "B19"]
[WhiteElo "2312"]
[BlackElo "2456"]
[Annotator "TA"]
[PlyCount "49"]
[EventDate "2022.05.15"]
[EventType "schev"]
[EventCountry "TUR"]
[SourceTitle "playchess.com"]
[Source "ChessBase"]
[SourceQuality "1"]
[TimeControl "5400+30"]

{[%evp 25,49,0,0,0,0,0,0,0,0,0,0,0,0,0,0,0,0,-3022,0,0,0,0,0,0,0,0]} 1. e4 {[%emt 0:17:00]} c6 {[%emt 0:01:00]} 2. d4 {[%emt 0:02:30]} d5 {[%emt 0:00:00]} 3. Nc3 {[%emt 0:00:30][%cal Bb1c3,Bc3e4,Be4g3][%mdl 32]} dxe4 {[%emt 0:00:00]} 4. Nxe4 {[%emt 0:00:00]} Bf5 {[%emt 0:00:00]} 5. Ng3 {[%emt 0:00:00]} Bg6 {[%emt 0:00:00]} 6. h4 {[%emt 0:00:30]} h6 {[%emt 0:00:30]} 7. Nf3 {[%emt 0:00:00]} Nd7 {[%emt 0:00:00]} 8. h5 {[%emt 0:00:00]} Bh7 {[%emt 0:00:00]} 9. Bd3 {[%emt 0:00:00]} Bxd3 {[%emt 0:00:00]} 10. Qxd3 {[%emt 0:00:00]} e6 {[%emt 0:00:00]} 11. Bd2 {[%emt 0:00:00]} Ngf6 {[%emt 0:00:00][%cal Bg8f6,Bf6d5,Bd5c3][%mdl 32]} 12. O-O-O {[%emt 0:00:00]} Be7 {[%emt 0:00:00]} 13. Qe2 {[%emt 0:00:30]} O-O {[%emt 0:00:30]} 14. Nf1 {[%emt 0:00:00][%cal Og2g4] B19: Classical Caro-Kann: 4...Bf5 main line.} c5 {[%emt 0:00:00]} 15. g4 {[%emt 0:00:00][%cal Bg2g4,Bg4g5,Bg5h6][%mdl 32]} cxd4 {[%emt 0:00:00] Threatens to win with ...Qb6.} ({But not} 15... Nxg4 16. Rg1 $16) 16. g5 {[%emt 0:00:00]} Nd5 {[%emt 0:00:30]} 17. gxh6 {[%emt 0:00:00]} Qb6 $1 {[%emt 0:00:30][%cal Oe7a3] [#] aiming for ...Ba3!} 18. Rg1 {[%emt 0:00:30] Strongly threatening Qd3.} Ba3 $1 {[%emt 0:00:30]} 19. bxa3 {[%emt 0:00:30] Chess con chili.} Nc3 $1 {[%emt 0:00:30] [#]} 20. Bxc3 $146 {[%emt 0:00:30]} ({Predecessor:} 20. Rxg7+ Kh8 21. Rh7+ Kg8 22. Rg7+ Kh8 {½-½ (22) Sychev,K (2385)-Saulin,D (2445) Moscow 2014}) 20... dxc3 {[%emt 0:00:30][%csl Gc3][%cal Rb6b2]} 21. Rxg7+ {[%emt 0:00:30]} Kh8 {[%emt 0:00:30][%csl Gc3][%cal Rb6b2] [#]} 22. Rh7+ $1 {[%emt 0:00:30] The position is equal.} Kg8 $1 {[%emt 0:00:30][%csl Gc3][%cal Rb6b2]} 23. Rg7+ {[%emt 0:00:30]} Kh8 {[%emt 0:00:30][%csl Gc3][%cal Rb6b2]} 24. Rh7+ $1 {[%emt 0:00:30]} Kg8 $1 {[%emt 0:00:30][%csl Gc3][%cal Rb6b2]} 25. Rg7+ {[%emt 0:00:30] Weighted Error Value: White=0.00 (flawless) /Black=0.00 (flawless)} 1/2-1/2